[Event "Late-Titled-Tuesday-Blitz-February-13-2024"]
[Site "Chess.com"]
[Date "2024.02.13"]
[Round "9"]
[White "kids2010"]
[Black "DuleMudule"]
[Result "1-0"]
[WhiteElo "2785"]
[BlackElo "2855"]
[TimeControl "180+1"]
[EndTime "15:46:26 PST"]
[Termination "kids2010 won on time"]

1. e4 {[%clk 0:02:55.7]} 1... c6 {[%clk 0:02:59.8]} 2. Nf3 {[%clk 0:02:54.4]}
2... d5 {[%clk 0:03:00.7]} 3. Nc3 {[%clk 0:02:54.1]} 3... dxe4 {[%clk
0:03:00.5]} 4. Nxe4 {[%clk 0:02:55]} 4... Nf6 {[%clk 0:03:01]} 5. Qe2 {[%clk
0:02:55.5]} 5... Nxe4 {[%clk 0:03:01]} 6. Qxe4 {[%clk 0:02:56.4]} 6... Nd7
{[%clk 0:03:01.2]} 7. Bc4 {[%clk 0:02:56.1]} 7... Nf6 {[%clk 0:03:01.4]} 8. Ne5
{[%clk 0:02:56.6]} 8... e6 {[%clk 0:03:01.9]} 9. Qe2 {[%clk 0:02:49.2]} 9... b5
{[%clk 0:03:00.3]} 10. Bb3 {[%clk 0:02:46.4]} 10... Qc7 {[%clk 0:02:59.4]} 11.
d4 {[%clk 0:02:45.7]} 11... Bd6 {[%clk 0:02:58.8]} 12. O-O {[%clk 0:02:37.9]}
12... O-O {[%clk 0:02:59.2]} 13. Bf4 {[%clk 0:02:33.8]} 13... a5 {[%clk
0:02:53.5]} 14. c3 {[%clk 0:02:33.8]} 14... a4 {[%clk 0:02:49.5]} 15. Bc2 {[%clk
0:02:32.5]} 15... Nd5 {[%clk 0:02:49.8]} 16. Bg3 {[%clk 0:02:19.8]} 16... f5
{[%clk 0:02:48.5]} 17. a3 {[%clk 0:02:05]} 17... c5 {[%clk 0:02:39.7]} 18. dxc5
{[%clk 0:01:57.3]} 18... Qxc5 {[%clk 0:02:34.2]} 19. Nd3 {[%clk 0:01:54]} 19...
Qc7 {[%clk 0:02:30.7]} 20. Bxd6 {[%clk 0:01:53.7]} 20... Qxd6 {[%clk 0:02:31.6]}
21. Qe5 {[%clk 0:01:49.8]} 21... Qxe5 {[%clk 0:02:11.4]} 22. Nxe5 {[%clk
0:01:50.7]} 22... Bb7 {[%clk 0:02:10.3]} 23. Rad1 {[%clk 0:01:38.3]} 23... Rfd8
{[%clk 0:02:05.3]} 24. Rd4 {[%clk 0:01:34]} 24... Kf8 {[%clk 0:01:59.8]} 25.
Rfd1 {[%clk 0:01:32.6]} 25... Ke7 {[%clk 0:02:00.2]} 26. Re1 {[%clk 0:00:38.7]}
26... Kf6 {[%clk 0:01:55.4]} 27. g3 {[%clk 0:00:37.1]} 27... g5 {[%clk
0:01:54.5]} 28. h4 {[%clk 0:00:36.3]} 28... g4 {[%clk 0:01:50.7]} 29. Nd3 {[%clk
0:00:31.8]} 29... Rac8 {[%clk 0:01:44.2]} 30. Re2 {[%clk 0:00:27.2]} 30... Rc4
{[%clk 0:01:15.7]} 31. Rxc4 {[%clk 0:00:27.1]} 31... bxc4 {[%clk 0:01:15.6]} 32.
Nc5 {[%clk 0:00:26.8]} 32... Bc8 {[%clk 0:01:14.2]} 33. Nxa4 {[%clk 0:00:22.2]}
33... Ne7 {[%clk 0:00:54]} 34. Nc5 {[%clk 0:00:19.8]} 34... e5 {[%clk 0:00:53]}
35. a4 {[%clk 0:00:19.2]} 35... Nc6 {[%clk 0:00:52.7]} 36. b4 {[%clk 0:00:17]}
36... cxb3 {[%clk 0:00:50.9]} 37. Bxb3 {[%clk 0:00:17.5]} 37... e4 {[%clk
0:00:50.1]} 38. Ra2 {[%clk 0:00:15.7]} 38... Na5 {[%clk 0:00:49.6]} 39. Bc2
{[%clk 0:00:16]} 39... Rd2 {[%clk 0:00:47.4]} 40. Nb3 {[%clk 0:00:16]} 40...
Nxb3 {[%clk 0:00:43.1]} 41. Bxb3 {[%clk 0:00:16.9]} 41... Rd3 {[%clk 0:00:43.2]}
42. Bc4 {[%clk 0:00:15.2]} 42... Rxc3 {[%clk 0:00:42.2]} 43. Be2 {[%clk
0:00:12.2]} 43... Rc1+ {[%clk 0:00:41.9]} 44. Kh2 {[%clk 0:00:12]} 44... Bb7
{[%clk 0:00:41.1]} 45. Rb2 {[%clk 0:00:12.6]} 45... Bd5 {[%clk 0:00:41.1]} 46.
Rb5 {[%clk 0:00:11.4]} 46... Ke6 {[%clk 0:00:40.7]} 47. Rb6+ {[%clk 0:00:11.5]}
47... Ke5 {[%clk 0:00:41]} 48. Rb5 {[%clk 0:00:11.2]} 48... Kd6 {[%clk
0:00:40.7]} 49. Rb6+ {[%clk 0:00:11.2]} 49... Kc5 {[%clk 0:00:40.5]} 50. Rb5+
{[%clk 0:00:11.7]} 50... Kc6 {[%clk 0:00:40.8]} 51. Rb8 {[%clk 0:00:04]} 51...
Ra1 {[%clk 0:00:39.6]} 52. Rc8+ {[%clk 0:00:04.2]} 52... Kd6 {[%clk 0:00:38.3]}
53. Rd8+ {[%clk 0:00:04.7]} 53... Ke5 {[%clk 0:00:38.1]} 54. Re8+ {[%clk
0:00:04.8]} 54... Kd4 {[%clk 0:00:34]} 55. Rd8 {[%clk 0:00:05.4]} 55... Ra2
{[%clk 0:00:26.9]} 56. Bb5 {[%clk 0:00:03.2]} 56... Rxf2+ {[%clk 0:00:21.7]} 57.
Kg1 {[%clk 0:00:03.9]} 57... Rc2 {[%clk 0:00:22.3]} 58. Bf1 {[%clk 0:00:02.9]}
58... Ke5 {[%clk 0:00:18.9]} 59. a5 {[%clk 0:00:03.3]} 59... e3 {[%clk
0:00:18.3]} 60. a6 {[%clk 0:00:02]} 60... e2 {[%clk 0:00:16.9]} 61. Re8+ {[%clk
0:00:02.5]} 61... Be6 {[%clk 0:00:16.5]} 62. Bxe2 {[%clk 0:00:03.2]} 62... Rxe2
{[%clk 0:00:17]} 63. a7 {[%clk 0:00:03.8]} 63... Ra2 {[%clk 0:00:10.3]} 64. a8=Q
{[%clk 0:00:04.3]} 64... Rxa8 {[%clk 0:00:10.2]} 65. Rxa8 {[%clk 0:00:05.2]}
65... f4 {[%clk 0:00:10]} 66. Kf2 {[%clk 0:00:05]} 66... f3 {[%clk 0:00:08]} 67.
Ra5+ {[%clk 0:00:04.4]} 67... Kf6 {[%clk 0:00:08]} 68. Ke3 {[%clk 0:00:04.3]}
68... h6 {[%clk 0:00:06.4]} 69. Rc5 {[%clk 0:00:04.9]} 69... Bf5 {[%clk
0:00:06.1]} 70. Rc3 {[%clk 0:00:04.1]} 70... Be6 {[%clk 0:00:06.4]} 71. Rd3
{[%clk 0:00:04.1]} 71... Ke5 {[%clk 0:00:06.5]} 72. Rd2 {[%clk 0:00:04.4]} 72...
Bc4 {[%clk 0:00:05.9]} 73. Rb2 {[%clk 0:00:05.3]} 73... Bd5 {[%clk 0:00:06]} 74.
Rb5 {[%clk 0:00:05.2]} 74... h5 {[%clk 0:00:03.5]} 75. Ra5 {[%clk 0:00:05.4]}
75... Ke6 {[%clk 0:00:03.5]} 76. Kd4 {[%clk 0:00:05.7]} 76... f2 {[%clk
0:00:02.8]} 77. Ra6+ {[%clk 0:00:03.8]} 77... Ke7 {[%clk 0:00:01.3]} 78. Ra7+
{[%clk 0:00:03.5]} 1-0

[Event "Late-Titled-Tuesday-Blitz-February-13-2024"]
[Site "Chess.com"]
[Date "2024.02.13"]
[Round "9"]
[White "IngOscarArdila"]
[Black "ATM622"]
[Result "0-1"]
[WhiteElo "2308"]
[BlackElo "2477"]
[TimeControl "180+1"]
[EndTime "15:46:53 PST"]
[Termination "ATM622 won on time"]

1. d4 {[%clk 0:02:59.9]} 1... Nf6 {[%clk 0:02:59.7]} 2. c4 {[%clk 0:03:00.3]}
2... e6 {[%clk 0:02:59.3]} 3. Nc3 {[%clk 0:03:00.4]} 3... Bb4 {[%clk 0:02:58.3]}
4. Qc2 {[%clk 0:03:00.3]} 4... d5 {[%clk 0:02:57.8]} 5. Bg5 {[%clk 0:03:00]}
5... Nbd7 {[%clk 0:02:52.7]} 6. Nf3 {[%clk 0:02:59.8]} 6... h6 {[%clk
0:02:45.4]} 7. Bxf6 {[%clk 0:02:59.3]} 7... Bxc3+ {[%clk 0:02:45.3]} 8. Qxc3
{[%clk 0:02:57.8]} 8... Nxf6 {[%clk 0:02:45.5]} 9. e3 {[%clk 0:02:53.4]} 9...
O-O {[%clk 0:02:44.7]} 10. Bd3 {[%clk 0:02:52.4]} 10... dxc4 {[%clk 0:02:44.5]}
11. Qxc4 {[%clk 0:02:47.8]} 11... Rb8 {[%clk 0:02:32.1]} 12. Rc1 {[%clk
0:02:46.1]} 12... c6 {[%clk 0:02:25.9]} 13. O-O {[%clk 0:02:45.5]} 13... Qd5
{[%clk 0:02:25]} 14. Ne5 {[%clk 0:02:34.6]} 14... Qxc4 {[%clk 0:02:20.2]} 15.
Rxc4 {[%clk 0:02:31.3]} 15... Rd8 {[%clk 0:02:18.5]} 16. Rfc1 {[%clk 0:02:29.7]}
16... Bd7 {[%clk 0:02:16.9]} 17. b4 {[%clk 0:02:22.7]} 17... Be8 {[%clk
0:02:15.4]} 18. a4 {[%clk 0:02:19.4]} 18... Nd5 {[%clk 0:02:14.4]} 19. Be4
{[%clk 0:02:04.9]} 19... f6 {[%clk 0:02:12.5]} 20. Nd3 {[%clk 0:01:57.1]} 20...
Nb6 {[%clk 0:02:09.5]} 21. Rc5 {[%clk 0:01:39.1]} 21... a6 {[%clk 0:01:59.7]}
22. Nb2 {[%clk 0:01:29.6]} 22... Nd7 {[%clk 0:01:55.3]} 23. R5c3 {[%clk
0:01:27]} 23... Nb6 {[%clk 0:01:53.6]} 24. a5 {[%clk 0:01:24.1]} 24... Nd5
{[%clk 0:01:53.2]} 25. Bxd5 {[%clk 0:01:24.3]} 25... exd5 {[%clk 0:01:50.4]} 26.
Nd3 {[%clk 0:01:20]} 26... b6 {[%clk 0:01:47.7]} 27. axb6 {[%clk 0:01:17.7]}
27... Rxb6 {[%clk 0:01:46.9]} 28. Kf1 {[%clk 0:01:15.4]} 28... Bg6 {[%clk
0:01:44.5]} 29. Ke2 {[%clk 0:01:12.8]} 29... Rd6 {[%clk 0:01:29.5]} 30. Nf4
{[%clk 0:01:08.3]} 30... Bf7 {[%clk 0:01:26.3]} 31. Ra1 {[%clk 0:01:04.5]} 31...
Rd8 {[%clk 0:01:05.7]} 32. Nd3 {[%clk 0:01:00.4]} 32... Bg6 {[%clk 0:01:01]} 33.
Nc5 {[%clk 0:01:00.3]} 33... Ra8 {[%clk 0:00:59.8]} 34. Rca3 {[%clk 0:00:52.8]}
34... Rxb4 {[%clk 0:00:59.5]} 35. Rxa6 {[%clk 0:00:52.8]} 35... Rb2+ {[%clk
0:00:54.7]} 36. Kf3 {[%clk 0:00:52]} 36... Rc8 {[%clk 0:00:27.1]} 37. Ra8 {[%clk
0:00:50.5]} 37... Rbb8 {[%clk 0:00:25.6]} 38. Rxb8 {[%clk 0:00:35.6]} 38... Rxb8
{[%clk 0:00:26.5]} 39. Ra6 {[%clk 0:00:35.4]} 39... Rc8 {[%clk 0:00:26.4]} 40.
Kf4 {[%clk 0:00:30.6]} 40... Bc2 {[%clk 0:00:16.1]} 41. h4 {[%clk 0:00:29.7]}
41... g6 {[%clk 0:00:08.1]} 42. Ra7 {[%clk 0:00:28.8]} 42... g5+ {[%clk
0:00:06.4]} 43. Kg3 {[%clk 0:00:26.4]} 43... Re8 {[%clk 0:00:05.6]} 44. Rc7
{[%clk 0:00:24]} 44... Bd1 {[%clk 0:00:03.2]} 45. Rxc6 {[%clk 0:00:22.8]} 45...
Kg7 {[%clk 0:00:03]} 46. Rc7+ {[%clk 0:00:21.5]} 46... Kg6 {[%clk 0:00:03.2]}
47. Rd7 {[%clk 0:00:20]} 47... h5 {[%clk 0:00:02.3]} 48. Rxd5 {[%clk 0:00:18.3]}
48... gxh4+ {[%clk 0:00:01.9]} 49. Kxh4 {[%clk 0:00:18.4]} 49... Ra8 {[%clk
0:00:02.1]} 50. Rd7 {[%clk 0:00:14.8]} 50... Ra2 {[%clk 0:00:02.1]} 51. Kg3
{[%clk 0:00:14.5]} 51... Bg4 {[%clk 0:00:01.5]} 52. f3 {[%clk 0:00:14.3]} 52...
Bxd7 {[%clk 0:00:01.5]} 53. Nxd7 {[%clk 0:00:13.5]} 53... Kg5 {[%clk 0:00:01.6]}
54. f4+ {[%clk 0:00:11.4]} 54... Kf5 {[%clk 0:00:02.1]} 55. Nc5 {[%clk
0:00:11.6]} 55... Kg6 {[%clk 0:00:02.2]} 56. Kf3 {[%clk 0:00:11.8]} 56... f5
{[%clk 0:00:02.7]} 57. Nd7 {[%clk 0:00:10.9]} 57... Kf7 {[%clk 0:00:02.3]} 58.
Ne5+ {[%clk 0:00:11.1]} 58... Ke6 {[%clk 0:00:02.8]} 59. Ng6 {[%clk 0:00:10.9]}
59... Kf6 {[%clk 0:00:03.2]} 60. Ne5 {[%clk 0:00:11.2]} 60... Ra1 {[%clk
0:00:03.5]} 61. Nd3 {[%clk 0:00:11.1]} 61... Rd1 {[%clk 0:00:03.2]} 62. Nf2
{[%clk 0:00:10.9]} 62... Rd2 {[%clk 0:00:03.3]} 63. Nh3 {[%clk 0:00:10.4]} 63...
h4 {[%clk 0:00:03.3]} 64. Ng5 {[%clk 0:00:10.1]} 64... Kg6 {[%clk 0:00:03.6]}
65. Ne6 {[%clk 0:00:09.9]} 65... Kh5 {[%clk 0:00:03.1]} 66. Ng7+ {[%clk
0:00:09.2]} 66... Kg6 {[%clk 0:00:03.5]} 67. Ne6 {[%clk 0:00:09.5]} 67... Kf6
{[%clk 0:00:03.9]} 68. Nc5 {[%clk 0:00:09.6]} 68... Rd1 {[%clk 0:00:04]} 69.
Nd7+ {[%clk 0:00:08.3]} 69... Ke7 {[%clk 0:00:03.8]} 70. Ne5 {[%clk 0:00:08.4]}
70... Ke6 {[%clk 0:00:04]} 71. Ng6 {[%clk 0:00:08.1]} 71... Rh1 {[%clk
0:00:03.7]} 72. Kf2 {[%clk 0:00:05.6]} 72... h3 {[%clk 0:00:03.8]} 73. gxh3
{[%clk 0:00:04.2]} 73... Rxh3 {[%clk 0:00:04.2]} 74. Ne5 {[%clk 0:00:03.4]}
74... Kd5 {[%clk 0:00:04.5]} 75. Kg2 {[%clk 0:00:02.6]} 75... Rxe3 {[%clk
0:00:04.5]} 76. Kf2 {[%clk 0:00:02]} 76... Re4 {[%clk 0:00:04.7]} 77. Ng6 {[%clk
0:00:02.1]} 77... Rxd4 {[%clk 0:00:04.7]} 78. Kf3 {[%clk 0:00:02.6]} 78... Rd3+
{[%clk 0:00:04.8]} 79. Kf2 {[%clk 0:00:02.5]} 79... Ke4 {[%clk 0:00:04.7]} 80.
Ke2 {[%clk 0:00:03]} 80... Re3+ {[%clk 0:00:04.5]} 81. Kf2 {[%clk 0:00:03.4]}
81... Rf3+ {[%clk 0:00:04.9]} 82. Kg2 {[%clk 0:00:03.8]} 82... Ra3 {[%clk
0:00:04]} 83. Kf2 {[%clk 0:00:04.1]} 83... Ra2+ {[%clk 0:00:04.2]} 84. Kg3
{[%clk 0:00:04.6]} 84... Ke3 {[%clk 0:00:04.6]} 85. Ne5 {[%clk 0:00:04.2]} 85...
Ke4 {[%clk 0:00:03.1]} 86. Ng6 {[%clk 0:00:03.4]} 86... Ra6 {[%clk 0:00:03.3]}
87. Ne5 {[%clk 0:00:03.3]} 87... Re6 {[%clk 0:00:03.5]} 88. Nc4 {[%clk
0:00:02.5]} 88... Rg6+ {[%clk 0:00:03.6]} 89. Kf2 {[%clk 0:00:02.3]} 89... Kxf4
{[%clk 0:00:04.1]} 90. Ne3 {[%clk 0:00:01.6]} 90... Ke4 {[%clk 0:00:04.4]} 91.
Nc4 {[%clk 0:00:01.5]} 91... Rc6 {[%clk 0:00:04.4]} 92. Nd2+ {[%clk 0:00:01.7]}
92... Kf4 {[%clk 0:00:04.7]} 93. Nf3 {[%clk 0:00:01.8]} 93... Rc2+ {[%clk
0:00:04.7]} 0-1

[Event "Late-Titled-Tuesday-Blitz-February-13-2024"]
[Site "Chess.com"]
[Date "2024.02.13"]
[Round "9"]
[White "djano"]
[Black "LiamPutnam2008"]
[Result "0-1"]
[WhiteElo "2664"]
[BlackElo "2844"]
[TimeControl "180+1"]
[EndTime "15:47:29 PST"]
[Termination "LiamPutnam2008 won by resignation"]

1. e4 {[%clk 0:03:00.9]} 1... a6 {[%clk 0:02:58.6]} 2. d4 {[%clk 0:02:59.9]}
2... b5 {[%clk 0:02:58.9]} 3. Bd3 {[%clk 0:02:59.8]} 3... Bb7 {[%clk 0:02:58.8]}
4. Nd2 {[%clk 0:02:59.8]} 4... e6 {[%clk 0:02:58.6]} 5. Ngf3 {[%clk 0:02:58.7]}
5... Nf6 {[%clk 0:02:57.9]} 6. Qe2 {[%clk 0:02:59]} 6... d5 {[%clk 0:02:55]} 7.
O-O {[%clk 0:02:59.9]} 7... dxe4 {[%clk 0:02:54.3]} 8. Nxe4 {[%clk 0:03:00]}
8... Nbd7 {[%clk 0:02:55]} 9. Re1 {[%clk 0:02:52.9]} 9... Be7 {[%clk 0:02:53.9]}
10. c3 {[%clk 0:02:47]} 10... Nxe4 {[%clk 0:02:49.4]} 11. Bxe4 {[%clk
0:02:47.1]} 11... Bxe4 {[%clk 0:02:50.3]} 12. Qxe4 {[%clk 0:02:48]} 12... O-O
{[%clk 0:02:51.2]} 13. Bf4 {[%clk 0:02:36.1]} 13... c5 {[%clk 0:02:43.3]} 14.
Rad1 {[%clk 0:02:36]} 14... Nf6 {[%clk 0:02:40.5]} 15. Qe5 {[%clk 0:02:27.5]}
15... c4 {[%clk 0:02:36.6]} 16. h3 {[%clk 0:02:13.4]} 16... Qd5 {[%clk
0:02:34.8]} 17. Qe2 {[%clk 0:02:02]} 17... Rfd8 {[%clk 0:02:27]} 18. Ne5 {[%clk
0:02:01.8]} 18... Rac8 {[%clk 0:02:20.2]} 19. Bg5 {[%clk 0:01:58.5]} 19... h6
{[%clk 0:02:17.3]} 20. Bh4 {[%clk 0:01:58.8]} 20... Rc7 {[%clk 0:02:11.6]} 21.
f4 {[%clk 0:01:41.9]} 21... Ne8 {[%clk 0:02:04.7]} 22. Bf2 {[%clk 0:01:36.5]}
22... Nd6 {[%clk 0:02:01.6]} 23. Ng4 {[%clk 0:01:28.6]} 23... Nf5 {[%clk
0:01:48.3]} 24. Ne3 {[%clk 0:01:27.8]} 24... Nxe3 {[%clk 0:01:48.8]} 25. Bxe3
{[%clk 0:01:26.8]} 25... b4 {[%clk 0:01:49.5]} 26. Bd2 {[%clk 0:01:23.4]} 26...
Rb7 {[%clk 0:01:48.2]} 27. Qg4 {[%clk 0:01:15.8]} 27... h5 {[%clk 0:01:44.4]}
28. Qg3 {[%clk 0:01:13.5]} 28... bxc3 {[%clk 0:01:42.1]} 29. Bxc3 {[%clk
0:01:11.5]} 29... Bf6 {[%clk 0:01:34.3]} 30. Rd2 {[%clk 0:01:08.2]} 30... Rbd7
{[%clk 0:01:32.3]} 31. Kh2 {[%clk 0:01:00.8]} 31... Qf5 {[%clk 0:01:28]} 32.
Red1 {[%clk 0:00:55.8]} 32... Qe4 {[%clk 0:01:26.5]} 33. Re1 {[%clk 0:00:50.6]}
33... Qf5 {[%clk 0:01:09.7]} 34. Red1 {[%clk 0:00:47.8]} 34... Rd5 {[%clk
0:01:10]} 35. Qf3 {[%clk 0:00:41.3]} 35... g6 {[%clk 0:01:04]} 36. Qf1 {[%clk
0:00:39.8]} 36... Kg7 {[%clk 0:00:59.8]} 37. Qf3 {[%clk 0:00:34.8]} 37... h4
{[%clk 0:00:57.6]} 38. Qe3 {[%clk 0:00:28.1]} 38... Be7 {[%clk 0:00:45.1]} 39.
a3 {[%clk 0:00:27]} 39... Bd6 {[%clk 0:00:45.5]} 40. Rf1 {[%clk 0:00:24.7]}
40... g5 {[%clk 0:00:46]} 41. Kh1 {[%clk 0:00:16.8]} 41... Bxf4 {[%clk
0:00:46.3]} 42. Qe2 {[%clk 0:00:17.5]} 42... Qg6 {[%clk 0:00:44.5]} 43. Rdd1
{[%clk 0:00:17]} 43... Rc8 {[%clk 0:00:44.6]} 44. Qf3 {[%clk 0:00:15.7]} 44...
Bg3 {[%clk 0:00:37.5]} 45. Rd2 {[%clk 0:00:12.5]} 45... Rf5 {[%clk 0:00:37.2]}
46. Qd1 {[%clk 0:00:12.2]} 46... Rxf1+ {[%clk 0:00:38.1]} 47. Qxf1 {[%clk
0:00:13.1]} 47... Kh7 {[%clk 0:00:37.9]} 48. d5 {[%clk 0:00:13.5]} 48... exd5
{[%clk 0:00:32.2]} 49. Rxd5 {[%clk 0:00:14.4]} 49... Re8 {[%clk 0:00:31.1]} 50.
Rf5 {[%clk 0:00:14.5]} 50... Kg8 {[%clk 0:00:23.2]} 51. Rf6 {[%clk 0:00:13.4]}
51... Qd3 {[%clk 0:00:20.3]} 52. Rxf7 {[%clk 0:00:10.1]} 52... Qxf1+ {[%clk
0:00:20]} 53. Rxf1 {[%clk 0:00:11]} 53... Re2 {[%clk 0:00:20]} 54. Rd1 {[%clk
0:00:09.7]} 54... Rc2 {[%clk 0:00:17.3]} 55. Kg1 {[%clk 0:00:09.7]} 55... Kf7
{[%clk 0:00:16.6]} 56. Kf1 {[%clk 0:00:10.2]} 56... Rf2+ {[%clk 0:00:16.4]} 57.
Kg1 {[%clk 0:00:10.8]} 57... Ke6 {[%clk 0:00:17.1]} 58. Rf1 {[%clk 0:00:10.1]}
58... Re2 {[%clk 0:00:16.9]} 59. Rd1 {[%clk 0:00:10]} 59... Kf5 {[%clk
0:00:16.7]} 60. Kf1 {[%clk 0:00:10.5]} 60... Rf2+ {[%clk 0:00:17.2]} 61. Kg1
{[%clk 0:00:11.2]} 61... Ke4 {[%clk 0:00:17.5]} 62. Rf1 {[%clk 0:00:10.7]} 62...
Re2 {[%clk 0:00:13.1]} 63. Rd1 {[%clk 0:00:09.2]} 63... Re3 {[%clk 0:00:09.7]}
64. Kf1 {[%clk 0:00:08.8]} 64... Rd3 {[%clk 0:00:10.2]} 65. Ke2 {[%clk
0:00:06.7]} 65... Rxd1 {[%clk 0:00:09.1]} 66. Kxd1 {[%clk 0:00:07.6]} 66... Kd3
{[%clk 0:00:09.8]} 67. Bf6 {[%clk 0:00:08]} 67... Bf4 {[%clk 0:00:09.9]} 68. Bg7
{[%clk 0:00:04.5]} 68... Be3 {[%clk 0:00:09.3]} 69. Bf6 {[%clk 0:00:04.6]} 69...
a5 {[%clk 0:00:09.5]} 70. Bg7 {[%clk 0:00:04.9]} 70... a4 {[%clk 0:00:10.2]} 71.
Bf6 {[%clk 0:00:05.4]} 71... Bf4 {[%clk 0:00:09.5]} 72. Bg7 {[%clk 0:00:05.3]}
72... Ke3 {[%clk 0:00:10.2]} 73. Ke1 {[%clk 0:00:04.4]} 73... Ke4 {[%clk
0:00:10.2]} 74. Ke2 {[%clk 0:00:04.9]} 74... Be3 {[%clk 0:00:10]} 75. Bf6 {[%clk
0:00:04.7]} 75... Bc1 {[%clk 0:00:09.4]} 76. Bc3 {[%clk 0:00:04.5]} 76... Kf4
{[%clk 0:00:08.2]} 77. Bf6 {[%clk 0:00:04.6]} 77... Kg3 {[%clk 0:00:08]} 78. Kf1
{[%clk 0:00:05]} 78... g4 {[%clk 0:00:05.8]} 79. hxg4 {[%clk 0:00:03.1]} 79...
Kxg4 {[%clk 0:00:06.7]} 80. Be5 {[%clk 0:00:03.5]} 80... Kf5 {[%clk 0:00:06.9]}
81. Bc3 {[%clk 0:00:03.4]} 81... Ke4 {[%clk 0:00:05.2]} 82. Ke2 {[%clk
0:00:04.1]} 82... Kf4 {[%clk 0:00:05.8]} 83. Bf6 {[%clk 0:00:04.3]} 83... Kg3
{[%clk 0:00:05.6]} 84. Kf1 {[%clk 0:00:04.9]} 84... Be3 {[%clk 0:00:06.1]} 85.
Be5+ {[%clk 0:00:05]} 85... Bf4 {[%clk 0:00:06.5]} 86. Bc3 {[%clk 0:00:05.6]}
86... Bd6 {[%clk 0:00:06.6]} 87. Be1+ {[%clk 0:00:05.6]} 87... Kg4 {[%clk
0:00:07]} 88. Bd2 {[%clk 0:00:06]} 88... Bc5 {[%clk 0:00:07.6]} 89. Ke2 {[%clk
0:00:05.8]} 89... Bd4 {[%clk 0:00:08.1]} 90. Bc3 {[%clk 0:00:05.2]} 90... Bc5
{[%clk 0:00:04.3]} 91. Kf1 {[%clk 0:00:05.1]} 91... Kg3 {[%clk 0:00:04.7]} 92.
Be1+ {[%clk 0:00:04.9]} 92... Kg4 {[%clk 0:00:05.4]} 93. Bc3 {[%clk 0:00:04.8]}
93... Bb6 {[%clk 0:00:05.9]} 94. Ke2 {[%clk 0:00:03.3]} 94... Ba7 {[%clk
0:00:05.6]} 95. Kf1 {[%clk 0:00:03.7]} 95... Bb8 {[%clk 0:00:06.1]} 96. Ke2
{[%clk 0:00:04.1]} 96... Kf4 {[%clk 0:00:06]} 97. Bd2+ {[%clk 0:00:03.6]} 97...
Ke4 {[%clk 0:00:06.5]} 98. Be1 {[%clk 0:00:03.5]} 98... Bg3 {[%clk 0:00:05.2]}
99. Bc3 {[%clk 0:00:04.1]} 99... Bf4 {[%clk 0:00:04]} 100. Bf6 {[%clk
0:00:03.3]} 100... Bg3 {[%clk 0:00:03.3]} 101. Bc3 {[%clk 0:00:03.9]} 101... Be5
{[%clk 0:00:03.1]} 102. Bxe5 {[%clk 0:00:03.5]} 102... Kxe5 {[%clk 0:00:04]}
103. Ke3 {[%clk 0:00:04]} 103... Kd5 {[%clk 0:00:04.4]} 104. Ke2 {[%clk
0:00:02.6]} 104... Ke4 {[%clk 0:00:04.8]} 105. Kd2 {[%clk 0:00:03.2]} 105... Kd4
{[%clk 0:00:05.5]} 106. Ke2 {[%clk 0:00:02.5]} 106... c3 {[%clk 0:00:05.5]} 107.
bxc3+ {[%clk 0:00:03.2]} 107... Kxc3 {[%clk 0:00:06.4]} 108. Kd1 {[%clk
0:00:03]} 108... Kb2 {[%clk 0:00:06.3]} 109. Kd2 {[%clk 0:00:03]} 109... Kb3
{[%clk 0:00:06]} 110. Kd3 {[%clk 0:00:03.1]} 110... Kxa3 {[%clk 0:00:06.6]} 111.
Kc3 {[%clk 0:00:03.4]} 111... Ka2 {[%clk 0:00:07.2]} 112. Kc2 {[%clk 0:00:03.7]}
112... a3 {[%clk 0:00:07.9]} 113. Kc3 {[%clk 0:00:03]} 113... Kb1 {[%clk
0:00:08.2]} 114. Kb3 {[%clk 0:00:03.7]} 114... a2 {[%clk 0:00:08.7]} 115. Ka3
{[%clk 0:00:04.6]} 115... a1=Q+ {[%clk 0:00:09.6]} 0-1

[Event "Late-Titled-Tuesday-Blitz-February-13-2024"]
[Site "Chess.com"]
[Date "2024.02.13"]
[Round "10"]
[White "Miguelito"]
[Black "Payyappat"]
[Result "1-0"]
[WhiteElo "2771"]
[BlackElo "2573"]
[TimeControl "180+1"]
[EndTime "15:50:45 PST"]
[Termination "Miguelito won by resignation"]

1. e4 {[%clk 0:03:00.9]} 1... c6 {[%clk 0:02:57.4]} 2. d4 {[%clk 0:03:00.8]}
2... d5 {[%clk 0:02:58.3]} 3. exd5 {[%clk 0:03:01.7]} 3... cxd5 {[%clk
0:02:59.2]} 4. Nf3 {[%clk 0:03:02.3]} 4... Nc6 {[%clk 0:02:58.7]} 5. c3 {[%clk
0:03:02.9]} 5... Nf6 {[%clk 0:02:59]} 6. Bf4 {[%clk 0:03:02.1]} 6... Bf5 {[%clk
0:02:53.6]} 7. Qb3 {[%clk 0:03:01.8]} 7... Qd7 {[%clk 0:02:51.8]} 8. Ne5 {[%clk
0:02:56.2]} 8... Nxe5 {[%clk 0:02:19.1]} 9. dxe5 {[%clk 0:02:54.7]} 9... Qe6
{[%clk 0:02:18]} 10. Qxb7 {[%clk 0:02:47.3]} 10... Rd8 {[%clk 0:02:16.5]} 11.
Na3 {[%clk 0:02:45.7]} 11... g5 {[%clk 0:02:14.4]} 12. Nb5 {[%clk 0:02:42.5]}
12... Rc8 {[%clk 0:01:11.3]} 13. Nc7+ {[%clk 0:02:32]} 13... Rxc7 {[%clk
0:01:10.3]} 14. Qxc7 {[%clk 0:02:32.9]} 14... gxf4 {[%clk 0:01:10.2]} 15. Bb5+
{[%clk 0:02:32.9]} 1-0

[Event "Late-Titled-Tuesday-Blitz-February-13-2024"]
[Site "Chess.com"]
[Date "2024.02.13"]
[Round "10"]
[White "VitorBronson"]
[Black "Heinza9"]
[Result "1-0"]
[WhiteElo "2495"]
[BlackElo "2286"]
[TimeControl "180+1"]
[EndTime "15:51:26 PST"]
[Termination "VitorBronson won by resignation"]

1. d4 {[%clk 0:03:00.9]} 1... f5 {[%clk 0:02:59.4]} 2. g4 {[%clk 0:02:58.7]}
2... d5 {[%clk 0:02:58.6]} 3. h3 {[%clk 0:02:56]} 3... Nf6 {[%clk 0:02:57.5]} 4.
Nc3 {[%clk 0:02:53.7]} 4... fxg4 {[%clk 0:02:56.9]} 5. Bg5 {[%clk 0:02:50.7]}
5... Bf5 {[%clk 0:02:51.2]} 6. hxg4 {[%clk 0:02:50]} 6... Bxg4 {[%clk
0:02:49.8]} 7. Qd3 {[%clk 0:02:49]} 7... Qd7 {[%clk 0:02:44.7]} 8. f3 {[%clk
0:02:42.7]} 8... Bf5 {[%clk 0:02:44]} 9. e4 {[%clk 0:02:43.3]} 9... dxe4 {[%clk
0:02:44.3]} 10. fxe4 {[%clk 0:02:43.9]} 10... Bg6 {[%clk 0:02:44.5]} 11. O-O-O
{[%clk 0:02:42.5]} 11... Nc6 {[%clk 0:02:43.8]} 12. d5 {[%clk 0:02:40.3]} 12...
Ne5 {[%clk 0:02:40.2]} 13. Qg3 {[%clk 0:02:40.2]} 13... Nf7 {[%clk 0:02:37.2]}
14. Bb5 {[%clk 0:02:40.1]} 14... c6 {[%clk 0:02:29.6]} 15. dxc6 {[%clk
0:02:39.5]} 15... Qxd1+ {[%clk 0:02:28]} 16. Kxd1 {[%clk 0:02:38.9]} 16...
O-O-O+ {[%clk 0:02:25.8]} 17. Kc1 {[%clk 0:02:35.4]} 17... e5 {[%clk 0:02:19.4]}
18. cxb7+ {[%clk 0:02:32.4]} 18... Kxb7 {[%clk 0:02:19]} 19. Nf3 {[%clk
0:02:27.9]} 19... Bb4 {[%clk 0:02:14]} 20. Nxe5 {[%clk 0:02:23.4]} 20... Bd6
{[%clk 0:02:11]} 21. Bf4 {[%clk 0:02:17.4]} 21... Nxe5 {[%clk 0:02:00.9]} 22.
Bxe5 {[%clk 0:02:16.4]} 22... Nh5 {[%clk 0:02:00.8]} 23. Rxh5 {[%clk 0:02:15.6]}
23... Bxh5 {[%clk 0:02:00.9]} 24. Bxd6 {[%clk 0:02:06.5]} 24... Bg6 {[%clk
0:01:33.3]} 25. e5 {[%clk 0:02:03]} 1-0